fUSD/lending_fUSD_20250109
["ID","MTS","AMOUNT","RATE_DAILY","PERIOD"]
[348320438,1736443879006,-1609.3,0.00011987,2]
[348320439,1736443879016,-845.45,0.00011987,2]
[348320440,1736443879026,-1933.69,0.00011987,2]
[348320441,1736443879035,-1751.61,0.00011987,2]
[348320442,1736443879045,-2165.88,0.00011987,2]
[348320443,1736443879054,-1286.42,0.00011987,2]
[348320444,1736443879064,-3784.39,0.00011987,2]
[348320445,1736443879074,-151.0,0.00011987,2]
[348320446,1736443879083,-151.0,0.00011987,2]
[348320447,1736443879093,-9477.99,0.00011988,2]
[348320448,1736443879102,-500.0,0.00011988,2]
[348320449,1736443879112,-1248.09,0.00011988,2]
[348320450,1736443879122,-707.74,0.00011988,2]
[348320451,1736443879136,-2322.98,0.00011988,2]
[348320452,1736443879145,-696.04,0.00011988,2]
[348320453,1736443879155,-1021.98,0.00011988,2]
[348320454,1736443879164,-500.0,0.00011988,2]
[348320455,1736443879174,-1500.74,0.00011988,2]
[348320456,1736443879183,-1000.0,0.00011988,2]
[348320457,1736443879194,-1009.96,0.00011988,2]
[348320458,1736443879204,-2152.64,0.00011988,2]
[348320459,1736443879214,-1664.89,0.00011988,2]
[348320460,1736443879224,-151.0,0.0001199,2]
[348320461,1736443879234,-151.0,0.00011991,2]
[348320462,1736443879243,-1423.33,0.00012,2]
[348320463,1736443879253,-600.66074525,0.00012,2]
[348320464,1736443879262,-61610.66458197,0.00012,2]
[348320465,1736443879272,-5000.0,0.00012,2]
[348320466,1736443879281,-99000.0,0.00012,2]
[348320467,1736443879291,-13156.333128,0.00012,5]
[348320468,1736443879300,-89147.31069408,0.00012,2]
[348320469,1736443879310,-150.0,0.00012014,2]
[348320470,1736443879320,-200.0,0.00012055,2]
[348320471,1736443879330,-150.0,0.00012057,2]
[348320472,1736443879340,-328.61391748,0.00012072,2]
[348320473,1736443879349,-150.0,0.00012092,2]
[348320474,1736443879359,-592.03815,0.000121,2]
[348320475,1736443879369,-174.96615874,0.00012117,2]
[348320476,1736443879379,-150.0,0.00012118,2]
[348320477,1736443879388,-500.0,0.00012122,2]
[348320478,1736443879398,-152.0,0.00012127,3]
[348320479,1736443879407,-150.0,0.00012135,2]
[348320480,1736443879416,-1638.54,0.00012149,2]
[348320481,1736443879426,-1973.96,0.00012149,2]
[348320482,1736443879436,-1316.53,0.00012149,2]
[348320483,1736443879446,-3280.66,0.00012149,2]
[348320484,1736443879455,-6497.54,0.00012149,2]
[348320485,1736443879465,-3063.68,0.00012149,2]
[348320486,1736443879474,-150.0,0.00012153,2]
[348320487,1736443879484,-150.0,0.0001216,2]
[348320488,1736443879493,-9310.74602318,0.0001216,2]
[348320489,1736443879503,-999.0,0.00012164,2]
[348320490,1736443879513,-999.0,0.00012164,2]
[348320491,1736443879523,-999.0,0.00012164,2]
[348320492,1736443879533,-999.0,0.00012164,2]
[348320493,1736443879543,-999.0,0.00012164,2]
[348320494,1736443879554,-999.0,0.00012164,2]
[348320495,1736443879565,-999.0,0.00012164,2]
[348320496,1736443879574,-999.0,0.00012164,2]
[348320497,1736443879584,-999.0,0.00012164,2]
[348320498,1736443879593,-1009.0,0.00012164,2]
[348320499,1736443879602,-151.0,0.00012166,2]
[348320500,1736443879612,-328.61391748,0.00012176,2]
[348320501,1736443879623,-150.0,0.00012182,2]
[348320502,1736443879632,-2438.41001226,0.00012185,2]
[348320503,1736443879644,-150.0,0.00012189,2]
[348320504,1736443879654,-10926.0,0.00012191,2]
[348320505,1736443879665,-566.92,0.00012194,2]
[348320506,1736443879675,-150.0,0.00012198,2]
[348320507,1736443879687,-130314.71648852,0.000122,2]
[348320508,1736443879697,-154.3898907,0.000122,2]
[348320509,1736443879710,-13359.42347632,0.000122,2]
[348320510,1736443879722,-2272.70076178,0.000122,2]
[348320511,1736443879734,-184.53187083,0.000122,2]
[348320512,1736443879744,-2000.0,0.000122,3]
[348320513,1736443879755,-150.0,0.00012212,2]
[348320514,1736443879765,-335.08,0.00012232,2]
[348320515,1736443879777,-150.0,0.00012235,2]
[348320516,1736443879786,-150.0,0.00012244,2]
[348320517,1736443879795,-151.0,0.00012249,2]
[348320518,1736443879806,-260.48208148,0.00012254,3]
[348320519,1736443879818,-725.76,0.00012259,2]
[348320520,1736443879829,-500.0,0.00012259,2]
[348320521,1736443879840,-500.0,0.00012259,2]
[348320522,1736443879851,-802.65,0.00012259,2]
[348320523,1736443879860,-1098.26,0.00012259,2]
[348320524,1736443879870,-695.15,0.00012259,2]
[348320525,1736443879881,-500.0,0.00012259,2]
[348320526,1736443879891,-788.65,0.00012259,2]
[348320527,1736443879902,-578.26,0.00012259,2]
[348320528,1736443879912,-500.0,0.00012259,2]
[348320529,1736443879922,-500.0,0.00012259,2]
[348320530,1736443879932,-500.0,0.00012259,2]
[348320531,1736443879944,-1044.69,0.00012259,2]
[348320532,1736443879955,-841.24,0.00012259,2]
[348320533,1736443879966,-500.0,0.00012259,2]
[348320534,1736443879976,-500.0,0.00012259,2]
[348320535,1736443879986,-500.0,0.00012259,2]
[348320536,1736443879997,-500.0,0.00012259,2]
[348320537,1736443880008,-1057.25,0.00012259,2]
[348320538,1736443880018,-500.0,0.00012259,2]
[348320539,1736443880030,-983.27,0.00012259,2]
[348320540,1736443880041,-539.58,0.00012259,2]
[348320541,1736443880052,-500.0,0.00012259,2]
[348320542,1736443880063,-500.0,0.00012259,2]
[348320543,1736443880072,-520.83,0.00012259,2]
[348320544,1736443880082,-515.83,0.00012259,2]
[348320545,1736443880093,-500.0,0.00012259,2]
[348320546,1736443880103,-1399.51,0.00012259,2]
[348320547,1736443880114,-500.0,0.00012259,2]
[348320548,1736443880124,-500.0,0.00012259,2]
[348320549,1736443880141,-1229.61,0.00012259,2]
[348320550,1736443880151,-500.0,0.00012259,2]
[348320551,1736443880161,-500.0,0.00012259,2]
[348320552,1736443880170,-694.14,0.00012259,2]
[348320553,1736443880181,-500.0,0.00012259,2]
[348320554,1736443880191,-1222.94,0.00012259,2]
[348320555,1736443880201,-500.0,0.00012259,2]
[348320556,1736443880215,-547.62,0.00012259,2]
[348320557,1736443880226,-719.351032,0.00012259,2]
[348320558,1736443880240,-816.43,0.00012259,2]
[348320559,1736443880250,-500.0,0.00012259,2]
[348320560,1736443880260,-500.0,0.00012259,2]
[348320561,1736443880270,-3587.7,0.00012259,2]
[348320562,1736443880280,-500.0,0.00012259,2]
[348320563,1736443880291,-655.0205,0.00012259,2]
[348320564,1736443880300,-945.97,0.00012259,2]
[348320565,1736443880311,-500.0,0.00012259,2]
[348320566,1736443880321,-563.91,0.00012259,2]
[348320567,1736443880331,-912.71,0.00012259,2]
[348320568,1736443880340,-500.0,0.00012259,2]
[348320569,1736443880350,-1798.75,0.00012259,2]
[348320570,1736443880359,-1231.01,0.00012259,2]
[348320571,1736443880370,-794.44,0.00012259,2]
[348320572,1736443880383,-914.02,0.00012259,2]
[348320573,1736443880392,-500.0,0.00012259,2]
[348320574,1736443880404,-787.68,0.00012259,2]
[348320575,1736443880415,-500.0,0.00012259,2]
[348320576,1736443880424,-1066.87,0.00012259,2]
[348320577,1736443880434,-1039.32,0.00012259,2]
[348320578,1736443880443,-500.0,0.00012259,2]
[348320579,1736443880453,-530.72,0.00012259,2]
[348320580,1736443880462,-500.0,0.00012259,2]
[348320581,1736443880472,-500.0,0.00012259,2]
[348320582,1736443880481,-2238.6,0.00012259,2]
[348320583,1736443880491,-953.94,0.00012259,2]
[348320584,1736443880500,-806.17,0.00012259,2]
[348320585,1736443880510,-500.0,0.00012259,2]
[348320586,1736443880519,-4802.74,0.00012259,2]
[348320587,1736443880529,-587.62,0.00012259,2]
[348320588,1736443880538,-500.0,0.00012259,2]
[348320589,1736443880549,-4690.29,0.00012259,2]
[348320590,1736443880558,-566.14,0.00012259,2]
[348320591,1736443880569,-551.39,0.00012259,2]
[348320592,1736443880578,-500.0,0.00012259,2]
[348320593,1736443880587,-782.87,0.00012259,2]
[348320594,1736443880596,-523.84,0.00012259,2]
[348320595,1736443880605,-3514.12,0.00012259,2]
[348320596,1736443880615,-611.15,0.00012259,2]
[348320597,1736443880626,-966.58,0.00012259,2]
[348320598,1736443880636,-3279.33,0.00012259,2]
[348320599,1736443880646,-709.54,0.00012259,2]
[348320600,1736443880656,-1017.08,0.00012259,2]
[348320601,1736443880665,-884.82,0.00012259,2]
[348320602,1736443880674,-1403.61,0.00012259,2]
[348320603,1736443880684,-998.27,0.00012259,2]
[348320604,1736443880693,-943.95,0.00012259,2]
[348320605,1736443880702,-500.0,0.00012259,2]
[348320606,1736443880711,-1077.27,0.00012259,2]
[348320607,1736443880721,-600.04,0.00012259,2]
[348320608,1736443880731,-727.93,0.00012259,2]
[348320609,1736443880740,-1077.25,0.00012259,2]
[348320610,1736443880750,-500.0,0.00012259,2]
[348320611,1736443880759,-514.77,0.00012259,2]
[348320612,1736443880768,-743.82,0.00012259,2]
[348320613,1736443880778,-1072.8,0.00012259,2]
[348320614,1736443880788,-1031.69,0.00012259,2]
[348320615,1736443880798,-1207.51,0.00012259,2]
[348320616,1736443880808,-500.0,0.00012259,2]
[348320617,1736443880819,-669.21,0.00012259,2]
[348320618,1736443880828,-500.0,0.0001226,2]
[348320619,1736443880838,-500.0,0.0001226,2]
[348320620,1736443880847,-500.0,0.0001226,2]
[348320621,1736443880857,-500.0,0.0001226,2]
[348320622,1736443880866,-533.48576157,0.0001226,2]
[348320623,1736443880876,-500.0,0.0001226,2]
[348320624,1736443880885,-592.33,0.0001226,2]
[348320625,1736443880895,-500.0,0.0001226,2]
[348320626,1736443880904,-1022.22,0.0001226,2]
[348320627,1736443880914,-500.0,0.0001226,2]
[348320628,1736443880923,-500.0,0.0001226,2]
[348320629,1736443880932,-500.0,0.0001226,2]
[348320630,1736443880942,-1557.7,0.0001226,2]
[348320631,1736443880951,-500.0,0.0001226,2]
[348320632,1736443880961,-500.0,0.0001226,2]
[348320633,1736443880971,-500.0,0.0001226,2]
[348320634,1736443880980,-500.0,0.0001226,2]
[348320635,1736443880990,-500.0,0.0001226,2]
[348320636,1736443880999,-500.0,0.0001226,2]
[348320637,1736443881009,-500.0,0.0001226,2]
[348320638,1736443881018,-1891.11,0.0001226,2]
[348320639,1736443881028,-500.0,0.0001226,2]
[348320640,1736443881038,-500.0,0.0001226,2]
[348320641,1736443881048,-574.92,0.0001226,2]
[348320642,1736443881057,-1718.69,0.0001226,2]
[348320643,1736443881068,-1045.02,0.0001226,2]
[348320644,1736443881077,-500.0,0.0001226,2]
[348320645,1736443881087,-500.0,0.0001226,2]
[348320646,1736443881097,-665.13,0.0001226,2]
[348320647,1736443881106,-500.0,0.0001226,2]
[348320648,1736443881116,-545.39,0.0001226,2]
[348320649,1736443881127,-625.7,0.0001226,2]
[348320650,1736443881141,-500.0,0.0001226,2]
[348320651,1736443881151,-500.0,0.0001226,2]
[348320652,1736443881161,-500.0,0.0001226,2]
[348320653,1736443881172,-500.0,0.0001226,2]
[348320654,1736443881183,-500.0,0.0001226,2]
[348320655,1736443881195,-563.53,0.0001226,2]
[348320656,1736443881208,-588.3,0.0001226,2]
[348320657,1736443881219,-920.22,0.0001226,2]
[348320658,1736443881230,-500.0,0.0001226,2]
[348320659,1736443881240,-505.56,0.0001226,2]
[348320660,1736443881250,-500.0,0.0001226,2]
[348320661,1736443881260,-605.44,0.0001226,2]
[348320662,1736443881270,-628.31,0.0001226,2]
[348320663,1736443881280,-500.0,0.0001226,2]
[348320664,1736443881290,-500.0,0.0001226,2]
[348320665,1736443881300,-500.0,0.0001226,2]
[348320666,1736443881310,-500.0,0.0001226,2]
[348320667,1736443881320,-500.0,0.0001226,2]
[348320668,1736443881330,-500.0,0.0001226,2]
[348320669,1736443881340,-500.0,0.0001226,2]
[348320670,1736443881350,-565.02,0.0001226,2]
[348320671,1736443881360,-3968.46,0.0001226,2]
[348320672,1736443881371,-912.12,0.0001226,2]
[348320673,1736443881380,-500.0,0.0001226,2]
[348320674,1736443881390,-500.0,0.0001226,2]
[348320675,1736443881399,-314.03614739,0.0001226,2]
[348320676,1736443881409,-500.0,0.0001226,2]
[348320677,1736443881420,-500.0,0.0001226,2]
[348320678,1736443881430,-500.0,0.0001226,2]
[348320679,1736443881440,-500.0,0.0001226,2]
[348320680,1736443881449,-607.22,0.0001226,2]
[348320681,1736443881459,-500.0,0.0001226,2]
[348320682,1736443881469,-974.62,0.0001226,2]
[348320683,1736443881479,-517.83,0.0001226,2]
[348320684,1736443881489,-2345.4,0.0001226,2]
[348320685,1736443881500,-522.25,0.0001226,2]
[348320686,1736443881510,-2345.4,0.0001226,2]
[348320687,1736443881520,-530.63,0.0001226,2]
[348320688,1736443881530,-573.01908075,0.0001226,2]
[348320689,1736443881540,-500.0,0.0001226,2]
[348320690,1736443881551,-954.96,0.0001226,2]
[348320691,1736443881561,-500.0,0.0001226,2]
[348320692,1736443881572,-679.54,0.0001226,2]
[348320693,1736443881583,-532.67,0.0001226,2]
[348320694,1736443881593,-500.0,0.0001226,2]
[348320695,1736443881604,-756.22,0.0001226,2]
[348320696,1736443881615,-500.0,0.0001226,2]
[348320697,1736443881628,-500.0,0.0001226,2]
[348320698,1736443881640,-620.44,0.0001226,2]
[348320699,1736443881651,-540.87,0.0001226,2]
[348320700,1736443881662,-564.83,0.0001226,2]
[348320701,1736443881672,-674.56,0.0001226,2]
[348320702,1736443881682,-1525.01,0.0001226,2]
[348320703,1736443881692,-500.0,0.0001226,2]
[348320704,1736443881702,-500.0,0.0001226,2]
[348320705,1736443881712,-601.46,0.0001226,2]
[348320706,1736443881722,-500.0,0.0001226,2]
[348320707,1736443881733,-500.0,0.0001226,2]
[348320708,1736443881744,-561.3,0.0001226,2]
[348320709,1736443881754,-510.74,0.0001226,2]
[348320710,1736443881765,-500.0,0.0001226,2]
[348320711,1736443881775,-500.0,0.0001226,2]
[348320712,1736443881785,-597.46,0.0001226,2]
[348320713,1736443881795,-500.0,0.0001226,2]
[348320714,1736443881805,-521.05,0.0001226,2]
[348320715,1736443881818,-809.13,0.0001226,2]
[348320716,1736443881830,-500.0,0.0001226,2]
[348320717,1736443881840,-500.0,0.0001226,2]
[348320718,1736443881850,-500.0,0.0001226,2]
[348320719,1736443881860,-535.04,0.0001226,2]
[348320720,1736443881870,-500.0,0.0001226,2]
[348320721,1736443881880,-500.0,0.0001226,2]
[348320722,1736443881890,-500.0,0.0001226,2]
[348320723,1736443881899,-500.0,0.0001226,2]
[348320724,1736443881910,-1835.84,0.0001226,2]
[348320725,1736443881920,-500.0,0.0001226,2]
[348320726,1736443881930,-500.0,0.0001226,2]
[348320727,1736443881940,-756.03,0.0001226,2]
[348320728,1736443881949,-500.0,0.0001226,2]
[348320729,1736443881959,-500.0,0.0001226,2]
[348320730,1736443881970,-500.0,0.0001226,2]
[348320731,1736443881980,-500.0,0.0001226,2]
[348320732,1736443881990,-500.0,0.0001226,2]
[348320733,1736443882000,-747.58,0.0001226,2]
[348320734,1736443882010,-569.94,0.0001226,2]
[348320735,1736443882020,-890.19,0.0001226,2]
[348320736,1736443882030,-896.0,0.0001226,2]
[348320737,1736443882041,-500.0,0.0001226,2]
[348320738,1736443882051,-500.0,0.0001226,2]
[348320739,1736443882060,-500.0,0.0001226,2]
[348320740,1736443882072,-512.51,0.0001226,2]
[348320741,1736443882082,-500.0,0.0001226,2]
[348320742,1736443882092,-500.0,0.0001226,2]
[348320743,1736443882102,-527.36,0.0001226,2]
[348320744,1736443882112,-598.04,0.0001226,2]
[348320745,1736443882122,-500.0,0.0001226,2]
[348320746,1736443882134,-500.0,0.0001226,2]
[348320747,1736443882144,-500.0,0.0001226,2]
[348320748,1736443882154,-500.0,0.0001226,2]
[348320749,1736443882163,-683.94,0.0001226,2]
[348320750,1736443882174,-608.37,0.0001226,2]
[348320751,1736443882184,-500.0,0.0001226,2]
[348320752,1736443882194,-631.08,0.0001226,2]
[348320753,1736443882204,-500.0,0.0001226,2]
[348320754,1736443882215,-1014.23,0.0001226,2]
[348320755,1736443882227,-500.0,0.0001226,2]
[348320756,1736443882236,-500.0,0.0001226,2]
[348320757,1736443882247,-500.0,0.0001226,2]
[348320758,1736443882257,-996.35,0.0001226,2]
[348320759,1736443882267,-573.78,0.0001226,2]
[348320760,1736443882276,-500.0,0.0001226,2]
[348320761,1736443882286,-500.0,0.0001226,2]
[348320762,1736443882297,-500.0,0.0001226,2]
[348320763,1736443882307,-500.0,0.0001226,2]
[348320764,1736443882319,-4382.44,0.0001226,2]
[348320765,1736443882330,-500.0,0.0001226,2]
[348320766,1736443882340,-5361.04,0.0001226,2]
[348320767,1736443882350,-2902.65,0.0001226,2]
[348320768,1736443882360,-565.44,0.0001226,2]
[348320769,1736443882371,-563.14,0.0001226,2]
[348320770,1736443882381,-800.64,0.0001226,2]
[348320771,1736443882390,-500.0,0.0001226,2]
[348320772,1736443882399,-2140.08,0.0001226,2]
[348320773,1736443882409,-1935.58,0.0001226,2]
[348320774,1736443882419,-4415.78,0.0001226,2]
[348320775,1736443882430,-1088.97,0.0001226,2]
[348320776,1736443882440,-500.0,0.0001226,2]
[348320777,1736443882450,-889.5,0.0001226,2]
[348320778,1736443882460,-1882.85,0.0001226,2]
[348320779,1736443882471,-549.99,0.0001226,2]
[348320780,1736443882481,-605.98,0.0001226,2]
[348320781,1736443882491,-500.16,0.0001226,2]
[348320782,1736443882502,-500.0,0.0001226,2]
[348320783,1736443882512,-4339.17,0.0001226,2]
[348320784,1736443882522,-1246.1,0.0001226,2]
[348320785,1736443882532,-500.0,0.0001226,2]
[348320786,1736443882542,-599.86,0.0001226,2]
[348320787,1736443882554,-500.0,0.0001226,2]
[348320788,1736443882564,-635.1,0.0001226,2]
[348320789,1736443882579,-1535.05,0.0001226,2]
[348320790,1736443882589,-500.0,0.0001226,2]
[348320791,1736443882599,-551.96,0.0001226,2]
[348320792,1736443882608,-3444.79,0.0001226,2]
[348320793,1736443882618,-1978.41,0.0001226,2]
[348320794,1736443882627,-500.0,0.0001226,2]
[348320795,1736443882637,-500.0,0.0001226,2]
[348320796,1736443882647,-1866.2,0.0001226,2]
[348320797,1736443882658,-500.0,0.0001226,2]
[348320798,1736443882668,-500.0,0.0001226,2]
[348320799,1736443882680,-500.0,0.0001226,2]
[348320800,1736443882691,-522.76,0.0001226,2]
[348320801,1736443882702,-500.0,0.0001226,2]
[348320802,1736443882712,-548.72,0.0001226,2]
[348320803,1736443882724,-930.0,0.0001226,2]
[348320804,1736443882735,-500.0,0.0001226,2]
[348320805,1736443882745,-1261.63,0.0001226,2]
[348320806,1736443882755,-1363.26,0.0001226,2]
[348320807,1736443882765,-527.06,0.0001226,2]
[348320808,1736443882775,-1405.84,0.0001226,2]
[348320809,1736443882785,-1663.75,0.0001226,2]
[348320810,1736443882796,-399.3624575,0.00012261,2]
[348320811,1736443882807,-500.0,0.00012261,2]
[348320812,1736443882818,-500.0,0.00012261,2]
[348320813,1736443882828,-500.0,0.00012261,2]
[348320814,1736443882838,-500.0,0.00012261,2]
[348320815,1736443882850,-500.0,0.00012261,2]
[348320816,1736443882861,-500.0,0.00012261,2]
[348320817,1736443882872,-500.0,0.00012261,2]
[348320818,1736443882884,-500.0,0.00012261,2]
[348320819,1736443882894,-500.0,0.00012261,2]
[348320820,1736443882904,-500.0,0.00012261,2]
[348320821,1736443882914,-500.0,0.00012261,2]
[348320822,1736443882924,-500.0,0.00012261,2]
[348320823,1736443882934,-500.0,0.00012261,2]
[348320824,1736443882943,-500.0,0.00012261,2]
[348320825,1736443882954,-500.0,0.00012261,2]
[348320826,1736443882964,-500.0,0.00012261,2]
[348320827,1736443882975,-500.0,0.00012261,2]
[348320828,1736443882986,-500.0,0.00012261,2]
[348320829,1736443882998,-500.0,0.00012261,2]
[348320830,1736443883009,-500.0,0.00012261,2]
[348320831,1736443883019,-500.0,0.00012261,2]
[348320832,1736443883029,-500.0,0.00012261,2]
[348320833,1736443883039,-500.0,0.00012261,2]
[348320834,1736443883049,-500.0,0.00012261,2]
[348320835,1736443883059,-500.0,0.00012261,2]
[348320836,1736443883070,-500.0,0.00012261,2]
[348320837,1736443883080,-500.0,0.00012261,2]
[348320838,1736443883092,-500.0,0.00012261,2]
[348320839,1736443883341,-500.0,0.00012261,2]
[348320840,1736443883351,-1462.51,0.00012261,2]
[348320841,1736443883361,-521.67,0.00012261,2]
[348320842,1736443883371,-503.07,0.00012261,2]
[348320843,1736443883381,-661.91,0.00012261,2]
[348320844,1736443883391,-500.0,0.00012261,2]
[348320845,1736443883400,-500.0,0.00012261,2]
[348320846,1736443883412,-500.0,0.00012261,2]
[348320847,1736443883423,-500.0,0.00012261,2]
[348320848,1736443883434,-822.19,0.00012261,2]
[348320849,1736443883446,-500.0,0.00012261,2]
[348320850,1736443883456,-500.0,0.00012261,2]
[348320851,1736443883467,-500.0,0.00012261,2]
[348320852,1736443883477,-825.41,0.00012261,2]
[348320853,1736443883487,-574.29,0.00012261,2]
[348320854,1736443883496,-500.0,0.00012261,2]
[348320855,1736443883511,-500.0,0.00012261,2]
[348320856,1736443883522,-500.0,0.00012261,2]
[348320857,1736443883531,-1330.43,0.00012261,2]
[348320858,1736443883541,-567.4,0.00012261,2]
[348320859,1736443883553,-1070.83,0.00012261,2]
[348320860,1736443883563,-500.0,0.00012261,2]
[348320861,1736443883576,-1056.15,0.00012261,2]
[348320862,1736443883586,-490.09,0.00012261,2]
[348320863,1736443883595,-528.55,0.00012261,2]
[348320864,1736443883606,-565.52,0.00012261,2]
[348320865,1736443883615,-1685.7,0.00012261,2]
[348320866,1736443883625,-500.0,0.00012261,2]
[348320867,1736443883635,-1146.53,0.00012261,2]
[348320868,1736443883646,-602.79,0.00012261,2]
[348320869,1736443883656,-844.28,0.00012261,2]
[348320870,1736443883667,-500.0,0.00012261,2]
[348320871,1736443883677,-3048.3,0.00012261,2]
[348320872,1736443883687,-3916.43,0.00012261,2]
[348320873,1736443883698,-2673.05,0.00012261,2]
[348320874,1736443883709,-1201.14,0.00012261,2]
[348320875,1736443883719,-2023.47,0.00012261,2]
[348320876,1736443883729,-1552.42,0.00012261,2]
[348320877,1736443883738,-1498.72,0.00012261,2]
[348320878,1736443883748,-2673.28,0.00012261,2]
[348320879,1736443883758,-650.14,0.00012261,2]
[348320880,1736443883768,-1177.59,0.00012261,2]
[348320881,1736443883778,-5086.94,0.00012261,2]
[348320882,1736443883789,-1609.3,0.00012261,2]
[348320883,1736443883801,-845.45,0.00012261,2]
[348320884,1736443883812,-1933.69,0.00012261,2]
[348320885,1736443883824,-1751.61,0.00012261,2]
[348320886,1736443883834,-2165.88,0.00012261,2]
[348320887,1736443883844,-1286.42,0.00012261,2]
[348320888,1736443883854,-3784.39,0.00012261,2]
[348320889,1736443883864,-9477.99,0.00012262,2]
[348320890,1736443883874,-500.0,0.00012262,2]
[348320891,1736443883883,-1248.09,0.00012262,2]
[348320892,1736443883892,-707.74,0.00012262,2]
[348320893,1736443883903,-2322.98,0.00012262,2]
[348320894,1736443883912,-696.04,0.00012262,2]
[348320895,1736443883922,-1021.98,0.00012262,2]
[348320896,1736443883931,-500.0,0.00012262,2]
[348320897,1736443883940,-1500.74,0.00012262,2]
[348320898,1736443883951,-1000.0,0.00012262,2]
[348320899,1736443883960,-1009.96,0.00012262,2]
[348320900,1736443883970,-2152.64,0.00012262,2]
[348320901,1736443883980,-1664.89,0.00012262,2]
[348320902,1736443883990,-13702.64311915,0.0001227,2]
[348320903,1736443884000,-150.0,0.00012272,2]
[348320904,1736443884009,-7805.7806281,0.00012272,4]
[348320905,1736443884019,-328.61391748,0.00012279,2]
[348320906,1736443884028,-5050.0,0.0001228,18]
[348320907,1736443884038,-5050.0,0.0001228,20]
[348320908,1736443884048,-5050.0,0.0001228,21]
[348320909,1736443884057,-4893.90744446,0.0001228,2]
[348320910,1736443884070,-151.0,0.0001229,2]
[348320911,1736443884080,-138962.04798418,0.0001229,2]
[348320912,1736443884090,-151.0,0.0001229,2]
[348320913,1736443884098,-151.0,0.0001229,2]
[348320914,1736443884108,-5663.3353667,0.00012292,2]
[348320915,1736443884117,-6832.1955733,0.00012292,2]
[348320916,1736443884127,-8001.05578,0.00012292,2]
[348320917,1736443884140,-9169.9159866,0.00012292,2]
[348320918,1736443884149,-10338.7761933,0.00012292,2]
[348320919,1736443884159,-2486.575621,0.00012292,2]
[348320920,1736443884168,-2315.3336844,0.00012292,2]
[348320921,1736443884178,-2144.0917478,0.00012292,2]
[348320922,1736443884187,-1972.8498112,0.00012292,2]
[348320923,1736443884197,-1801.6078746,0.00012292,2]
[348320924,1736443884207,-3793.54392136,0.00012299,2]
[348320925,1736443884217,-406756.16511354,0.000123,4]
[348320926,1736443884227,-2196457.69189302,0.000123,2]
[348320927,1736443884530,-5663.00549854,0.000123,2]
[348320928,1736443884543,-78121.6,0.000123,2]
[348320929,1736443884556,-669.35632404,0.000123,2]
[348320930,1736443884573,-210166.82914079,0.000123,2]
[348320931,1736443884585,-4106.29506,0.000123,2]
[348320932,1736443884597,-4971.74782959,0.000123,2]
[348320933,1736443884610,-3907.79298001,0.000123,2]
[348320934,1736443884631,-500.0,0.00010342,2]
[348320935,1736443884642,-12701.90983459,0.000123,2]
[348320936,1736443884655,-800.89909356,0.000123,2]
[348320937,1736443884862,-707.3898016,0.00011164,2]